[Event "*** Titled Tuesday Blitz"]
[Site "Chess.com"]
[Date "2021.04.27"]
[Round "4"]
[White "Anton_Demchenko"]
[Black "TimurGareyev"]
[Result "1-0"]
[WhiteElo "2927"]
[BlackElo "2722"]
[TimeControl "180+1"]
[EndTime "10:37:08 PDT"]
[Termination "Anton_Demchenko won by resignation"]

1. e4 {[%clk 0:03:00.9]} 1... e5 {[%clk 0:02:58.3]} 2. Nf3 {[%clk 0:03:00.9]}
2... Nc6 {[%clk 0:02:58.7]} 3. Bc4 {[%clk 0:03:00.5]} 3... Nf6 {[%clk
0:02:57.5]} 4. d3 {[%clk 0:03:01.1]} 4... h6 {[%clk 0:02:56.8]} 5. a4 {[%clk
0:03:00.2]} 5... d6 {[%clk 0:02:54.2]} 6. Nc3 {[%clk 0:02:50]} 6... g6 {[%clk
0:02:26.8]} 7. h3 {[%clk 0:02:48.7]} 7... Bg7 {[%clk 0:02:26.3]} 8. Be3 {[%clk
0:02:49.3]} 8... a5 {[%clk 0:02:14.1]} 9. Qd2 {[%clk 0:02:45.2]} 9... Nb4 {[%clk
0:02:06.6]} 10. d4 {[%clk 0:02:34.6]} 10... Qe7 {[%clk 0:01:47.8]} 11. O-O-O
{[%clk 0:02:10.9]} 11... Bd7 {[%clk 0:01:25.9]} 12. Rhe1 {[%clk 0:02:04.5]}
12... c6 {[%clk 0:01:08.3]} 13. dxe5 {[%clk 0:01:38.6]} 13... dxe5 {[%clk
0:01:09.2]} 14. Qd6 {[%clk 0:01:38.9]} 14... Qxd6 {[%clk 0:00:57]} 15. Rxd6
{[%clk 0:01:39.8]} 15... O-O {[%clk 0:00:15.1]} 16. Nxe5 {[%clk 0:01:38.8]}
16... Nxe4 {[%clk 0:00:10.8]} 17. Nxe4 {[%clk 0:01:36.4]} 1-0

[Event "*** Titled Tuesday Blitz"]
[Site "Chess.com"]
[Date "2021.04.27"]
[Round "4"]
[White "ErikBlomqvist"]
[Black "AEMEffi"]
[Result "1-0"]
[WhiteElo "2579"]
[BlackElo "2327"]
[TimeControl "180+1"]
[EndTime "10:37:10 PDT"]
[Termination "ErikBlomqvist won by resignation"]

1. e4 {[%clk 0:03:00.9]} 1... e5 {[%clk 0:02:56.2]} 2. Nf3 {[%clk 0:03:00.8]}
2... Nc6 {[%clk 0:02:55.3]} 3. Bb5 {[%clk 0:03:01.3]} 3... a6 {[%clk 0:02:54.1]}
4. Ba4 {[%clk 0:03:02]} 4... Nf6 {[%clk 0:02:53.8]} 5. O-O {[%clk 0:03:02.4]}
5... Be7 {[%clk 0:02:54.4]} 6. Re1 {[%clk 0:03:01.2]} 6... b5 {[%clk 0:02:53.7]}
7. Bb3 {[%clk 0:03:01.4]} 7... d6 {[%clk 0:02:54]} 8. a4 {[%clk 0:03:01.3]} 8...
Rb8 {[%clk 0:02:50.3]} 9. axb5 {[%clk 0:02:58.6]} 9... axb5 {[%clk 0:02:51.2]}
10. c3 {[%clk 0:02:59.2]} 10... O-O {[%clk 0:02:50.6]} 11. d4 {[%clk 0:02:55.7]}
11... Bg4 {[%clk 0:02:48.9]} 12. d5 {[%clk 0:02:54.1]} 12... b4 {[%clk 0:02:35]}
13. dxc6 {[%clk 0:02:50.3]} 13... bxc3 {[%clk 0:02:33.9]} 14. Nxc3 {[%clk
0:02:48.5]} 14... Bxf3 {[%clk 0:02:33.1]} 15. gxf3 {[%clk 0:02:48.6]} 15... Nh5
{[%clk 0:02:31.4]} 16. Kh1 {[%clk 0:02:29.9]} 16... Bh4 {[%clk 0:02:13.1]} 17.
Be3 {[%clk 0:02:21.6]} 17... Kh8 {[%clk 0:02:12.7]} 18. Rg1 {[%clk 0:02:14]}
18... h6 {[%clk 0:01:48.2]} 19. Ra7 {[%clk 0:02:12]} 19... g5 {[%clk 0:01:45.4]}
20. Rb7 {[%clk 0:02:08.6]} 20... Ra8 {[%clk 0:01:38.6]} 21. Nd5 {[%clk
0:02:06.7]} 21... f5 {[%clk 0:01:34.5]} 22. exf5 {[%clk 0:02:04.6]} 22... Rc8
{[%clk 0:01:32.4]} 23. Qd3 {[%clk 0:01:55.8]} 23... Qe8 {[%clk 0:01:23.3]} 24.
Rxc7 {[%clk 0:01:48.8]} 24... Rxc7 {[%clk 0:01:20.9]} 25. Nxc7 {[%clk
0:01:48.4]} 25... Qxc6 {[%clk 0:01:21.6]} 26. Nd5 {[%clk 0:01:42.2]} 26... Nf6
{[%clk 0:01:16.7]} 27. Rc1 {[%clk 0:01:38.9]} 27... Qb7 {[%clk 0:01:15.9]} 28.
Rc7 {[%clk 0:01:36.7]} 28... Qa8 {[%clk 0:01:14.2]} 29. Kg2 {[%clk 0:01:31.4]}
29... Nh5 {[%clk 0:00:58.1]} 30. f6 {[%clk 0:01:29.1]} 1-0

[Event "*** Titled Tuesday Blitz"]
[Site "Chess.com"]
[Date "2021.04.27"]
[Round "4"]
[White "LazyIM"]
[Black "mapleaff"]
[Result "1-0"]
[WhiteElo "2612"]
[BlackElo "2397"]
[TimeControl "180+1"]
[EndTime "10:37:11 PDT"]
[Termination "LazyIM won by resignation"]

1. e4 {[%clk 0:02:55.3]} 1... e5 {[%clk 0:02:59.6]} 2. Nf3 {[%clk 0:02:53.8]}
2... Nc6 {[%clk 0:02:59.9]} 3. Bb5 {[%clk 0:02:54.5]} 3... Nf6 {[%clk 0:02:59]}
4. O-O {[%clk 0:02:53.5]} 4... Nxe4 {[%clk 0:02:58.7]} 5. Re1 {[%clk 0:02:53.9]}
5... Nd6 {[%clk 0:02:58.6]} 6. Nxe5 {[%clk 0:02:54.4]} 6... Be7 {[%clk 0:02:56]}
7. Bf1 {[%clk 0:02:54.3]} 7... Nxe5 {[%clk 0:02:56.1]} 8. Rxe5 {[%clk 0:02:54]}
8... O-O {[%clk 0:02:57]} 9. d4 {[%clk 0:02:54.7]} 9... Bf6 {[%clk 0:02:57.2]}
10. Re1 {[%clk 0:02:55.4]} 10... Re8 {[%clk 0:02:57.6]} 11. Bf4 {[%clk
0:02:56.1]} 11... Rxe1 {[%clk 0:02:56.3]} 12. Qxe1 {[%clk 0:02:56.3]} 12... Qe8
{[%clk 0:02:57.2]} 13. Nc3 {[%clk 0:02:49.7]} 13... Qe6 {[%clk 0:01:54.1]} 14.
d5 {[%clk 0:02:40.4]} 14... Qxe1 {[%clk 0:01:26.2]} 15. Rxe1 {[%clk 0:02:41.3]}
15... Kf8 {[%clk 0:01:25.1]} 16. Bxd6+ {[%clk 0:02:32.8]} 16... cxd6 {[%clk
0:01:24.7]} 17. Nb5 {[%clk 0:02:33.6]} 17... Be5 {[%clk 0:01:06.7]} 18. f4
{[%clk 0:02:10.2]} 18... a6 {[%clk 0:01:05.9]} 19. Nc7 {[%clk 0:02:07.8]} 19...
Rb8 {[%clk 0:00:48.7]} 20. fxe5 {[%clk 0:02:05.3]} 20... dxe5 {[%clk 0:00:48]}
21. Rxe5 {[%clk 0:02:05]} 21... f6 {[%clk 0:00:46.8]} 22. Re8+ {[%clk
0:02:05.2]} 22... Kf7 {[%clk 0:00:46.8]} 23. d6 {[%clk 0:02:06.1]} 23... b5
{[%clk 0:00:45.9]} 24. g4 {[%clk 0:02:00.2]} 24... g6 {[%clk 0:00:31.8]} 25. Bg2
{[%clk 0:01:58.8]} 25... Rb6 {[%clk 0:00:27.9]} 26. Rxc8 {[%clk 0:01:57.7]}
26... Rxd6 {[%clk 0:00:28.3]} 27. Nd5 {[%clk 0:01:56.9]} 27... a5 {[%clk
0:00:25.5]} 28. c3 {[%clk 0:01:55.1]} 28... h6 {[%clk 0:00:22.6]} 29. h4 {[%clk
0:01:54.4]} 1-0

[Event "*** Titled Tuesday Blitz"]
[Site "Chess.com"]
[Date "2021.04.27"]
[Round "4"]
[White "AntonovaNadezhda"]
[Black "827883"]
[Result "1-0"]
[WhiteElo "2112"]
[BlackElo "2244"]
[TimeControl "180+1"]
[EndTime "10:37:11 PDT"]
[Termination "AntonovaNadezhda won by checkmate"]

1. d4 {[%clk 0:03:00.9]} 1... d5 {[%clk 0:03:00]} 2. Nf3 {[%clk 0:03:00.7]} 2...
Nf6 {[%clk 0:03:00.4]} 3. e3 {[%clk 0:03:01.2]} 3... e6 {[%clk 0:02:59.1]} 4.
Nbd2 {[%clk 0:02:59.8]} 4... c5 {[%clk 0:02:58.6]} 5. Bd3 {[%clk 0:02:58.9]}
5... Nc6 {[%clk 0:02:56.7]} 6. b3 {[%clk 0:02:58.8]} 6... Bd6 {[%clk 0:02:50.3]}
7. Bb2 {[%clk 0:02:58.6]} 7... O-O {[%clk 0:02:50.3]} 8. a3 {[%clk 0:02:56.5]}
8... b6 {[%clk 0:02:45.2]} 9. Ne5 {[%clk 0:02:53.9]} 9... Qc7 {[%clk 0:02:40.9]}
10. f4 {[%clk 0:02:53.1]} 10... a5 {[%clk 0:02:32.9]} 11. Qe2 {[%clk 0:02:47.8]}
11... Nb8 {[%clk 0:02:20.5]} 12. O-O {[%clk 0:02:37.6]} 12... Ba6 {[%clk
0:02:20.6]} 13. c4 {[%clk 0:02:37.6]} 13... cxd4 {[%clk 0:02:04.7]} 14. exd4
{[%clk 0:02:36.7]} 14... Nbd7 {[%clk 0:02:02.6]} 15. Rac1 {[%clk 0:02:28.6]}
15... Qd8 {[%clk 0:01:56.4]} 16. Kh1 {[%clk 0:01:58.1]} 16... Bb7 {[%clk
0:01:45.6]} 17. Rf3 {[%clk 0:01:37.9]} 17... Qe7 {[%clk 0:01:39.6]} 18. Nxd7
{[%clk 0:01:30.6]} 18... Qxd7 {[%clk 0:01:31.8]} 19. c5 {[%clk 0:01:28.8]} 19...
bxc5 {[%clk 0:01:26.3]} 20. dxc5 {[%clk 0:01:28.7]} 20... Bc7 {[%clk 0:01:24.5]}
21. Bxf6 {[%clk 0:01:23.7]} 21... g6 {[%clk 0:01:06.3]} 22. Rh3 {[%clk
0:01:18.5]} 22... Bd8 {[%clk 0:01:03.1]} 23. Qh5 {[%clk 0:01:06.7]} 23... gxh5
{[%clk 0:00:52]} 24. Rg3# {[%clk 0:01:05.7]} 1-0

[Event "*** Titled Tuesday Blitz"]
[Site "Chess.com"]
[Date "2021.04.27"]
[Round "4"]
[White "pastouche06"]
[Black "Elshan1985"]
[Result "0-1"]
[WhiteElo "2569"]
[BlackElo "2886"]
[TimeControl "180+1"]
[EndTime "10:37:12 PDT"]
[Termination "Elshan1985 won by resignation"]

1. d4 {[%clk 0:03:00.9]} 1... Nf6 {[%clk 0:02:59.7]} 2. c4 {[%clk 0:03:00.5]}
2... e6 {[%clk 0:03:00.6]} 3. Nc3 {[%clk 0:03:00.3]} 3... Bb4 {[%clk 0:02:59.8]}
4. f3 {[%clk 0:02:59.8]} 4... d5 {[%clk 0:02:59.4]} 5. a3 {[%clk 0:02:57.7]}
5... Bxc3+ {[%clk 0:02:59.4]} 6. bxc3 {[%clk 0:02:58.6]} 6... c6 {[%clk
0:02:59.4]} 7. e3 {[%clk 0:02:46.3]} 7... O-O {[%clk 0:02:58.1]} 8. cxd5 {[%clk
0:02:43.9]} 8... cxd5 {[%clk 0:02:58]} 9. c4 {[%clk 0:02:43.4]} 9... dxc4 {[%clk
0:02:55.4]} 10. Bxc4 {[%clk 0:02:44.3]} 10... b5 {[%clk 0:02:55.6]} 11. Bd3
{[%clk 0:02:40.8]} 11... Nc6 {[%clk 0:02:54.1]} 12. Ne2 {[%clk 0:02:39]} 12...
e5 {[%clk 0:02:54.3]} 13. O-O {[%clk 0:02:22.3]} 13... a6 {[%clk 0:02:54.4]} 14.
Bb2 {[%clk 0:02:16.1]} 14... exd4 {[%clk 0:02:54.1]} 15. Nxd4 {[%clk 0:02:16]}
15... Ne5 {[%clk 0:02:54.6]} 16. Be2 {[%clk 0:02:10]} 16... Qb6 {[%clk
0:02:53.7]} 17. Qb3 {[%clk 0:01:49.3]} 17... Re8 {[%clk 0:02:39.4]} 18. Rac1
{[%clk 0:01:44.1]} 18... Bb7 {[%clk 0:02:38.1]} 19. Kh1 {[%clk 0:01:36.2]} 19...
Bd5 {[%clk 0:02:38]} 20. Qd1 {[%clk 0:01:33.2]} 20... Bc4 {[%clk 0:02:38.2]} 21.
Nf5 {[%clk 0:01:06.1]} 21... Rad8 {[%clk 0:02:36.6]} 22. Qe1 {[%clk 0:01:06.4]}
22... g6 {[%clk 0:02:32.9]} 23. Nd4 {[%clk 0:01:02.2]} 23... Bxe2 {[%clk
0:02:26.5]} 24. Qxe2 {[%clk 0:01:01]} 24... Nc4 {[%clk 0:02:26.3]} 25. Qf2
{[%clk 0:00:30.5]} 25... Nxb2 {[%clk 0:02:22.4]} 26. Qxb2 {[%clk 0:00:31.4]}
26... Rxe3 {[%clk 0:02:19.3]} 27. Nc6 {[%clk 0:00:27.4]} 27... Rd6 {[%clk
0:02:19.8]} 28. Nb4 {[%clk 0:00:24.8]} 28... a5 {[%clk 0:02:12.4]} 29. Na2
{[%clk 0:00:23.1]} 29... Qd4 {[%clk 0:02:09.5]} 30. Qf2 {[%clk 0:00:20.8]} 30...
Rxa3 {[%clk 0:02:04.3]} 31. Rc8+ {[%clk 0:00:19.7]} 31... Kg7 {[%clk 0:02:03.9]}
32. Qc2 {[%clk 0:00:19.1]} 32... Qd3 {[%clk 0:02:00.7]} 0-1

[Event "*** Titled Tuesday Blitz"]
[Site "Chess.com"]
[Date "2021.04.27"]
[Round "4"]
[White "elcandado"]
[Black "LamaChampetre"]
[Result "1-0"]
[WhiteElo "2633"]
[BlackElo "2208"]
[TimeControl "180+1"]
[EndTime "10:37:28 PDT"]
[Termination "elcandado won by resignation"]

1. d4 {[%clk 0:03:00.9]} 1... Nf6 {[%clk 0:02:59.4]} 2. Bf4 {[%clk 0:03:01.2]}
2... g6 {[%clk 0:02:59.6]} 3. Nc3 {[%clk 0:03:00.5]} 3... d5 {[%clk 0:02:59.2]}
4. Nb5 {[%clk 0:02:59.7]} 4... Na6 {[%clk 0:02:50.3]} 5. e3 {[%clk 0:02:59.5]}
5... Bg7 {[%clk 0:02:49.9]} 6. h3 {[%clk 0:03:00]} 6... O-O {[%clk 0:02:49]} 7.
Nf3 {[%clk 0:03:00]} 7... c6 {[%clk 0:02:46.7]} 8. Na3 {[%clk 0:02:59.3]} 8...
Bf5 {[%clk 0:02:42.6]} 9. Be2 {[%clk 0:02:59.5]} 9... Re8 {[%clk 0:02:30.7]} 10.
O-O {[%clk 0:02:59]} 10... Nc7 {[%clk 0:02:27.2]} 11. c4 {[%clk 0:02:58.2]}
11... Be4 {[%clk 0:02:24.5]} 12. Rc1 {[%clk 0:02:57.6]} 12... Nd7 {[%clk
0:02:18.3]} 13. Nd2 {[%clk 0:02:47.4]} 13... Bf5 {[%clk 0:02:03.3]} 14. Bxc7
{[%clk 0:02:45.5]} 14... Qxc7 {[%clk 0:01:59.5]} 15. cxd5 {[%clk 0:02:46]} 15...
e5 {[%clk 0:01:37.2]} 16. dxc6 {[%clk 0:02:41]} 16... bxc6 {[%clk 0:01:35.9]}
17. d5 {[%clk 0:02:40.6]} 17... Nb6 {[%clk 0:01:18.3]} 18. Rxc6 {[%clk
0:02:36.7]} 18... Qd7 {[%clk 0:01:17.7]} 19. e4 {[%clk 0:02:34.7]} 19... Bxh3
{[%clk 0:00:38.9]} 20. gxh3 {[%clk 0:02:35.6]} 20... Qxh3 {[%clk 0:00:38.6]} 21.
Qb3 {[%clk 0:02:35.2]} 21... Qh6 {[%clk 0:00:34.5]} 22. Qe3 {[%clk 0:02:33.2]}
22... Qh4 {[%clk 0:00:30.4]} 23. Qg3 {[%clk 0:02:24.8]} 23... Qe7 {[%clk
0:00:21]} 24. Rfc1 {[%clk 0:02:22.1]} 24... Bh6 {[%clk 0:00:19.8]} 25. R1c2
{[%clk 0:02:18.7]} 25... Bf4 {[%clk 0:00:19.5]} 26. Qg4 {[%clk 0:02:15.3]} 26...
h5 {[%clk 0:00:18.7]} 27. Qg2 {[%clk 0:02:14.8]} 27... Rad8 {[%clk 0:00:12.7]}
28. Nf1 {[%clk 0:02:11.7]} 28... h4 {[%clk 0:00:11.7]} 29. Bg4 {[%clk
0:02:08.8]} 29... Qg5 {[%clk 0:00:10.4]} 30. Bh3 {[%clk 0:02:07.4]} 30... Qh6
{[%clk 0:00:09.6]} 31. Nb5 {[%clk 0:02:03.8]} 31... Kh8 {[%clk 0:00:07.5]} 32.
Nxa7 {[%clk 0:02:00.2]} 32... Rg8 {[%clk 0:00:06.8]} 33. Rxb6 {[%clk 0:01:58.5]}
1-0

[Event "*** Titled Tuesday Blitz"]
[Site "Chess.com"]
[Date "2021.04.27"]
[Round "4"]
[White "szefru"]
[Black "lamomiablanca"]
[Result "0-1"]
[WhiteElo "2164"]
[BlackElo "2396"]
[TimeControl "180+1"]
[EndTime "10:37:35 PDT"]
[Termination "lamomiablanca won by resignation"]

1. e4 {[%clk 0:03:00.9]} 1... c5 {[%clk 0:02:59.4]} 2. Nf3 {[%clk 0:02:59.9]}
2... Nc6 {[%clk 0:02:59.1]} 3. Bb5 {[%clk 0:02:58.9]} 3... Nf6 {[%clk
0:02:55.1]} 4. e5 {[%clk 0:02:58.5]} 4... Nd5 {[%clk 0:02:52.3]} 5. O-O {[%clk
0:02:57.1]} 5... Qc7 {[%clk 0:02:50.7]} 6. Bxc6 {[%clk 0:02:40.1]} 6... dxc6
{[%clk 0:02:50.3]} 7. Nc3 {[%clk 0:02:40]} 7... Bg4 {[%clk 0:02:49]} 8. Re1
{[%clk 0:02:37]} 8... Nxc3 {[%clk 0:02:48.7]} 9. bxc3 {[%clk 0:02:37]} 9... e6
{[%clk 0:02:49.2]} 10. h3 {[%clk 0:02:36.4]} 10... Bh5 {[%clk 0:02:49]} 11. d3
{[%clk 0:02:33.8]} 11... Be7 {[%clk 0:02:48.8]} 12. Bf4 {[%clk 0:02:22.2]} 12...
O-O {[%clk 0:02:48.3]} 13. Re3 {[%clk 0:02:16.4]} 13... Rad8 {[%clk 0:02:47.6]}
14. Qd2 {[%clk 0:02:12.9]} 14... c4 {[%clk 0:02:46.3]} 15. d4 {[%clk 0:02:11.6]}
15... c5 {[%clk 0:02:46.7]} 16. Nh2 {[%clk 0:02:08.1]} 16... cxd4 {[%clk
0:02:46]} 17. cxd4 {[%clk 0:02:08.4]} 17... b5 {[%clk 0:02:43.9]} 18. c3 {[%clk
0:02:03.4]} 18... a5 {[%clk 0:02:39.6]} 19. Ng4 {[%clk 0:00:52.1]} 19... Bg6
{[%clk 0:02:24.9]} 20. Rg3 {[%clk 0:00:43.5]} 20... Kh8 {[%clk 0:02:15.8]} 21.
Bg5 {[%clk 0:00:39.3]} 21... b4 {[%clk 0:02:10]} 22. Bxe7 {[%clk 0:00:38.8]}
22... Qxe7 {[%clk 0:02:09.8]} 23. f4 {[%clk 0:00:29]} 23... Rb8 {[%clk
0:02:08.7]} 24. Rc1 {[%clk 0:00:28.5]} 24... b3 {[%clk 0:02:06.8]} 25. axb3
{[%clk 0:00:28.2]} 25... cxb3 {[%clk 0:02:06.8]} 26. Qb2 {[%clk 0:00:25.4]}
26... a4 {[%clk 0:02:07.1]} 27. Ra1 {[%clk 0:00:25.9]} 27... a3 {[%clk 0:02:04]}
28. Rxa3 {[%clk 0:00:25.7]} 28... Qxa3 {[%clk 0:02:04.2]} 29. Qxa3 {[%clk
0:00:26.6]} 29... b2 {[%clk 0:02:04.7]} 30. h4 {[%clk 0:00:20.5]} 30... b1=Q+
{[%clk 0:02:03.8]} 31. Kh2 {[%clk 0:00:20.9]} 31... Rfe8 {[%clk 0:01:54]} 32.
Ne3 {[%clk 0:00:17.9]} 32... Qe4 {[%clk 0:01:51.2]} 33. f5 {[%clk 0:00:17.2]}
33... exf5 {[%clk 0:01:49.9]} 34. Qd6 {[%clk 0:00:16.9]} 34... f4 {[%clk
0:01:47.2]} 0-1

[Event "*** Titled Tuesday Blitz"]
[Site "Chess.com"]
[Date "2021.04.27"]
[Round "4"]
[White "UnknownxArmy"]
[Black "ariosp"]
[Result "1-0"]
[WhiteElo "2376"]
[BlackElo "2203"]
[TimeControl "180+1"]
[EndTime "10:37:37 PDT"]
[Termination "UnknownxArmy won by resignation"]

1. e4 {[%clk 0:02:59.2]} 1... e5 {[%clk 0:02:59.1]} 2. Nf3 {[%clk 0:02:59.1]}
2... Nc6 {[%clk 0:02:59.1]} 3. Bb5 {[%clk 0:02:59.6]} 3... a6 {[%clk 0:02:56.2]}
4. Ba4 {[%clk 0:03:00.1]} 4... d6 {[%clk 0:02:56.7]} 5. O-O {[%clk 0:02:59.7]}
5... Ne7 {[%clk 0:02:56.6]} 6. c3 {[%clk 0:02:59.8]} 6... Ng6 {[%clk 0:02:56.3]}
7. d4 {[%clk 0:02:59.3]} 7... Bd7 {[%clk 0:02:56.4]} 8. Re1 {[%clk 0:02:56.6]}
8... Be7 {[%clk 0:02:56.3]} 9. Nbd2 {[%clk 0:02:56.5]} 9... O-O {[%clk 0:02:56]}
10. Bb3 {[%clk 0:02:50.7]} 10... Kh8 {[%clk 0:02:48.6]} 11. Nf1 {[%clk 0:02:47]}
11... Bg4 {[%clk 0:02:48.4]} 12. h3 {[%clk 0:02:45]} 12... Bxf3 {[%clk
0:02:47.7]} 13. Qxf3 {[%clk 0:02:40.1]} 13... exd4 {[%clk 0:02:47.3]} 14. Ng3
{[%clk 0:02:34.7]} 14... dxc3 {[%clk 0:02:46.8]} 15. bxc3 {[%clk 0:02:31.9]}
15... Bf6 {[%clk 0:02:35.6]} 16. Nh5 {[%clk 0:02:26.9]} 16... Be5 {[%clk
0:02:32.3]} 17. Qe3 {[%clk 0:02:21.1]} 17... Qh4 {[%clk 0:02:27.3]} 18. Bd1
{[%clk 0:02:14.8]} 18... f5 {[%clk 0:02:15.7]} 19. f4 {[%clk 0:02:03.8]} 19...
Bf6 {[%clk 0:01:47.3]} 20. Kh2 {[%clk 0:01:35.2]} 20... Bd8 {[%clk 0:01:09]} 21.
exf5 {[%clk 0:01:11.9]} 21... Nge7 {[%clk 0:01:08.5]} 22. g3 {[%clk 0:01:02.5]}
22... Nxf5 {[%clk 0:01:08.6]} 23. gxh4 {[%clk 0:01:02.6]} 23... Nxe3 {[%clk
0:01:07.1]} 24. Bxe3 {[%clk 0:01:02.7]} 24... g6 {[%clk 0:01:03.5]} 25. Ng3
{[%clk 0:01:01.1]} 25... Bf6 {[%clk 0:01:02.4]} 26. Rc1 {[%clk 0:01:01.1]} 26...
Rae8 {[%clk 0:01:01.3]} 27. Bf3 {[%clk 0:01:01.3]} 27... Bxh4 {[%clk 0:00:54.5]}
28. Kg2 {[%clk 0:01:01]} 28... Na5 {[%clk 0:00:51.9]} 29. Bd4+ {[%clk
0:00:59.9]} 1-0

[Event "*** Titled Tuesday Blitz"]
[Site "Chess.com"]
[Date "2021.04.27"]
[Round "4"]
[White "eduardoperalta"]
[Black "ChadBiryani"]
[Result "0-1"]
[WhiteElo "2467"]
[BlackElo "2311"]
[TimeControl "180+1"]
[EndTime "10:37:43 PDT"]
[Termination "ChadBiryani won on time"]

1. d4 {[%clk 0:03:00.9]} 1... f5 {[%clk 0:02:54.9]} 2. c4 {[%clk 0:03:01.3]}
2... e6 {[%clk 0:02:54.2]} 3. Nc3 {[%clk 0:03:00.9]} 3... Nf6 {[%clk 0:02:54.5]}
4. Bg5 {[%clk 0:03:00.5]} 4... Be7 {[%clk 0:02:51.9]} 5. Nf3 {[%clk 0:02:59.5]}
5... O-O {[%clk 0:02:52]} 6. e3 {[%clk 0:02:58.8]} 6... Ne4 {[%clk 0:02:45.1]}
7. Bxe7 {[%clk 0:02:57.7]} 7... Qxe7 {[%clk 0:02:44.9]} 8. Bd3 {[%clk
0:02:57.7]} 8... Nxc3 {[%clk 0:02:34.3]} 9. bxc3 {[%clk 0:02:58.6]} 9... d6
{[%clk 0:02:33.7]} 10. O-O {[%clk 0:02:58.6]} 10... e5 {[%clk 0:02:32.3]} 11. e4
{[%clk 0:02:49.3]} 11... f4 {[%clk 0:02:32.5]} 12. c5 {[%clk 0:02:43.1]} 12...
Nd7 {[%clk 0:02:26.5]} 13. cxd6 {[%clk 0:02:33.4]} 13... cxd6 {[%clk 0:02:26.2]}
14. Qb3+ {[%clk 0:02:25.2]} 14... Kh8 {[%clk 0:02:25.9]} 15. Rfe1 {[%clk
0:02:01.1]} 15... g5 {[%clk 0:02:22.9]} 16. h3 {[%clk 0:01:57.8]} 16... h5
{[%clk 0:02:19.2]} 17. dxe5 {[%clk 0:01:08.1]} 17... dxe5 {[%clk 0:02:07.2]} 18.
Nh2 {[%clk 0:01:03]} 18... Nf6 {[%clk 0:02:02.7]} 19. Qb4 {[%clk 0:00:27.1]}
19... Qg7 {[%clk 0:01:54.6]} 20. Qd6 {[%clk 0:00:24.7]} 20... g4 {[%clk
0:01:38]} 21. hxg4 {[%clk 0:00:22]} 21... Nxg4 {[%clk 0:01:37.7]} 22. Nxg4
{[%clk 0:00:19.1]} 22... Bxg4 {[%clk 0:01:37.5]} 23. Bf1 {[%clk 0:00:09.6]}
23... Rad8 {[%clk 0:01:32.6]} 24. Qc5 {[%clk 0:00:09.4]} 24... b6 {[%clk
0:01:31.9]} 25. Qa3 {[%clk 0:00:04.1]} 25... f3 {[%clk 0:01:26.9]} 26. g3 {[%clk
0:00:01.2]} 26... h4 {[%clk 0:01:27.3]} 0-1

[Event "*** Titled Tuesday Blitz"]
[Site "Chess.com"]
[Date "2021.04.27"]
[Round "4"]
[White "mirochka"]
[Black "lucachess49"]
[Result "0-1"]
[WhiteElo "2224"]
[BlackElo "2426"]
[TimeControl "180+1"]
[EndTime "10:37:46 PDT"]
[Termination "lucachess49 won on time"]

1. e4 {[%clk 0:03:00.9]} 1... e5 {[%clk 0:02:59.6]} 2. Nf3 {[%clk 0:03:00]} 2...
Nc6 {[%clk 0:03:00.1]} 3. d4 {[%clk 0:03:00]} 3... exd4 {[%clk 0:02:59.6]} 4. c3
{[%clk 0:03:00.2]} 4... Nf6 {[%clk 0:02:25.3]} 5. e5 {[%clk 0:02:58]} 5... Nd5
{[%clk 0:02:25.7]} 6. cxd4 {[%clk 0:02:53.7]} 6... Bb4+ {[%clk 0:02:24.9]} 7.
Bd2 {[%clk 0:02:53.2]} 7... Bxd2+ {[%clk 0:02:13]} 8. Qxd2 {[%clk 0:02:54.1]}
8... O-O {[%clk 0:02:11.6]} 9. Bc4 {[%clk 0:02:48.4]} 9... Nb6 {[%clk
0:02:10.7]} 10. Bd3 {[%clk 0:02:42.1]} 10... d6 {[%clk 0:02:08.9]} 11. O-O
{[%clk 0:02:35.2]} 11... dxe5 {[%clk 0:02:04.8]} 12. dxe5 {[%clk 0:02:33.3]}
12... Bg4 {[%clk 0:02:04.4]} 13. Qe3 {[%clk 0:01:33.3]} 13... Bxf3 {[%clk
0:02:02]} 14. gxf3 {[%clk 0:01:33.1]} 14... Nxe5 {[%clk 0:01:57.3]} 15. Bxh7+
{[%clk 0:01:27.1]} 15... Kxh7 {[%clk 0:01:58.2]} 16. Qxe5 {[%clk 0:01:27]} 16...
Qd5 {[%clk 0:01:35.6]} 17. Qxc7 {[%clk 0:01:18.8]} 17... Qxf3 {[%clk 0:01:33.5]}
18. Nc3 {[%clk 0:01:09]} 18... Rac8 {[%clk 0:01:26.7]} 19. Qg3 {[%clk
0:01:07.2]} 19... Qh5 {[%clk 0:01:23]} 20. Ne4 {[%clk 0:00:54.5]} 20... Rc6
{[%clk 0:01:19.7]} 21. Kh1 {[%clk 0:00:30.9]} 21... Rg6 {[%clk 0:01:17.8]} 22.
Qf4 {[%clk 0:00:21.6]} 22... Nd5 {[%clk 0:01:14.7]} 0-1

[Event "*** Titled Tuesday Blitz"]
[Site "Chess.com"]
[Date "2021.04.27"]
[Round "4"]
[White "muthaiahchess"]
[Black "Trickster_Pony"]
[Result "1-0"]
[WhiteElo "2364"]
[BlackElo "1621"]
[TimeControl "180+1"]
[EndTime "10:37:48 PDT"]
[Termination "muthaiahchess won by resignation"]

1. e4 {[%clk 0:03:00.9]} 1... c5 {[%clk 0:02:58.8]} 2. Nf3 {[%clk 0:03:00.2]}
2... g6 {[%clk 0:02:58.6]} 3. c3 {[%clk 0:02:59.4]} 3... Nf6 {[%clk 0:02:55.8]}
4. e5 {[%clk 0:02:59]} 4... Nd5 {[%clk 0:02:56]} 5. d4 {[%clk 0:02:59.1]} 5...
cxd4 {[%clk 0:02:55.5]} 6. cxd4 {[%clk 0:02:58.4]} 6... Nc6 {[%clk 0:02:55.4]}
7. Bc4 {[%clk 0:02:54.3]} 7... Nb6 {[%clk 0:02:55.3]} 8. Bb3 {[%clk 0:02:52.5]}
8... d5 {[%clk 0:02:55.4]} 9. exd6 {[%clk 0:02:51.7]} 9... Qxd6 {[%clk 0:02:55]}
10. h3 {[%clk 0:02:44]} 10... Bg7 {[%clk 0:02:53.2]} 11. Be3 {[%clk 0:02:41.4]}
11... Nb4 {[%clk 0:02:39.4]} 12. Nc3 {[%clk 0:02:36.3]} 12... N4d5 {[%clk
0:02:38.4]} 13. O-O {[%clk 0:02:32.6]} 13... O-O {[%clk 0:02:35.6]} 14. Qe2
{[%clk 0:02:27.9]} 14... Be6 {[%clk 0:02:24.4]} 15. Ng5 {[%clk 0:02:19]} 15...
Bf5 {[%clk 0:02:14.4]} 16. Qf3 {[%clk 0:02:07.2]} 16... Rfd8 {[%clk 0:01:41.3]}
17. g4 {[%clk 0:01:48.7]} 17... Bd3 {[%clk 0:01:32]} 18. Qxf7+ {[%clk
0:01:32.2]} 18... Kh8 {[%clk 0:01:29]} 19. Qxd5 {[%clk 0:00:58]} 19... Nxd5
{[%clk 0:01:13]} 20. Nf7+ {[%clk 0:00:56.5]} 20... Kg8 {[%clk 0:01:07.5]} 21.
Nxd6 {[%clk 0:00:56.4]} 21... Rxd6 {[%clk 0:01:04.1]} 22. Nxd5 {[%clk
0:00:53.6]} 22... Bxf1 {[%clk 0:01:03.6]} 23. Rxf1 {[%clk 0:00:43.3]} 23... e6
{[%clk 0:01:01.9]} 24. Nc7 {[%clk 0:00:42.4]} 24... Rc8 {[%clk 0:00:51.1]} 25.
Bxe6+ {[%clk 0:00:39.9]} 1-0